fUST/lending_fUST_20251124
["ID","MTS","AMOUNT","RATE_DAILY","PERIOD"]
[394744711,1763925051556,-500.0,0.00020924,2]
[394744713,1763925051565,-500.0,0.00020924,2]
[394744715,1763925051574,-150.0,0.00020924,2]
[394744717,1763925051583,-500.0,0.00020924,2]
[394744719,1763925051593,-500.0,0.00020924,2]
[394744721,1763925051603,-500.0,0.00020924,2]
[394744723,1763925051612,-500.0,0.00020924,2]
[394744725,1763925051621,-500.0,0.00020924,2]
[394744727,1763925051630,-500.0,0.00020924,2]
[394744729,1763925051639,-500.0,0.00020924,2]
[394744731,1763925051648,-500.0,0.00020924,2]
[394744733,1763925051657,-500.0,0.00020924,2]
[394744735,1763925051667,-500.0,0.00020924,2]
[394744737,1763925051675,-519.9861794,0.00020924,2]
[394744739,1763925051685,-500.0,0.00020924,2]
[394744741,1763925051694,-500.0,0.00020924,2]
[394744743,1763925051703,-500.0,0.00020924,2]
[394744745,1763925051712,-348.6032,0.00020938,15]
[394744747,1763925051721,-10298.96120934,0.00020974,2]
[394744749,1763925051731,-951.52674648,0.00020999,20]
[394744751,1763925051740,-5706.24097666,0.00021,5]
[394744753,1763925051749,-275.77210832,0.00021,2]
[394744755,1763925051760,-50000.0,0.00021,2]
[394744757,1763925051769,-13757.56613623,0.00021,3]
[394744759,1763925051778,-250.0,0.00021,2]
[394744761,1763925051787,-250.0,0.00021,2]
[394744762,1763925051797,-250.0,0.00021,2]
[394744764,1763925051806,-3000.0,0.00021,2]
[394744766,1763925051817,-150.0,0.00021,2]
[394744768,1763925051826,-3000.0,0.0002101,2]
[394744770,1763925051836,-3000.0,0.0002102,2]
[394744772,1763925051846,-3000.0,0.0002103,2]
[394744774,1763925051855,-3000.0,0.0002104,2]
[394744776,1763925051864,-3000.0,0.0002105,2]
[394744778,1763925051874,-3000.0,0.0002106,2]
[394744791,1763925051989,-3000.0,0.0002107,2]
[394744793,1763925051999,-3000.0,0.0002108,2]
[394744795,1763925052008,-3000.0,0.0002109,2]
[394744797,1763925052021,-250.0,0.000211,2]
[394744799,1763925052031,-250.0,0.000211,2]
[394744801,1763925052039,-250.0,0.000211,2]
[394744803,1763925052049,-188.0,0.000211,2]
[394744805,1763925052058,-3000.0,0.000211,2]
[394744807,1763925052069,-3000.0,0.0002111,2]
[394744809,1763925052078,-3000.0,0.0002112,2]
[394744811,1763925052087,-3000.0,0.0002113,2]
[394744813,1763925052098,-3000.0,0.0002114,2]
[394744815,1763925052107,-3000.0,0.0002115,2]
[394744817,1763925052116,-951.52674648,0.00021154,24]
[394744818,1763925052125,-3000.0,0.0002116,2]
[394744819,1763925052134,-3000.0,0.0002117,2]
[394744820,1763925052143,-3000.0,0.0002118,2]
[394744821,1763925052152,-3000.0,0.0002119,2]
[394744822,1763925052161,-3000.0,0.000212,2]
[394744823,1763925052170,-150.0,0.00021203,2]
[394744824,1763925052179,-3000.0,0.0002121,2]
[394744825,1763925052188,-3000.0,0.0002122,2]
[394744826,1763925052197,-3000.0,0.0002123,2]
[394744827,1763925052206,-500.0,0.00021231,60]
[394744829,1763925052216,-155.22,0.00021231,30]
[394744831,1763925052225,-3000.0,0.0002124,2]
[394744833,1763925052234,-3000.0,0.0002125,2]
[394744835,1763925052243,-3000.0,0.0002126,2]
[394744837,1763925052252,-3000.0,0.0002127,2]
[394744839,1763925052261,-3000.0,0.0002128,2]
[394744841,1763925052270,-3000.0,0.0002129,2]
[394744843,1763925052280,-3000.0,0.000213,2]
[394744845,1763925052289,-228.04117173,0.00021309,2]
[394744847,1763925052298,-951.52674648,0.0002131,28]
[394744849,1763925052307,-3000.0,0.0002131,2]
[394744851,1763925052317,-3000.0,0.0002132,2]
[394744853,1763925052326,-3000.0,0.0002133,2]
[394744855,1763925052335,-3000.0,0.0002134,2]
[394744857,1763925052344,-3000.0,0.0002135,2]
[394744859,1763925052354,-241.04221616,0.00021354,32]
[394744861,1763925052363,-3000.0,0.0002136,2]
[394744863,1763925052372,-3000.0,0.0002137,2]
[394744865,1763925052382,-1560.0,0.0002137,2]
[394744867,1763925052391,-3000.0,0.0002138,2]
[394744869,1763925052400,-3000.0,0.0002139,2]
[394744871,1763925052409,-250.0,0.000214,2]
[394744873,1763925052419,-250.0,0.000214,2]
[394744875,1763925052429,-3000.0,0.000214,2]
[394744877,1763925052438,-3000.0,0.0002141,2]
[394744879,1763925052447,-3000.0,0.0002142,2]
[394744881,1763925052456,-5702.756373,0.0002143,2]
[394744883,1763925052465,-1000.0,0.00021434,10]
[394744885,1763925052474,-1000.0,0.00021434,10]
[394744887,1763925052483,-579.0,0.00021434,10]
[394744889,1763925052493,-951.52674648,0.00021466,31]
[394744891,1763925052502,-1000.0,0.00021472,2]
[394744893,1763925052511,-1000.0,0.00021472,2]
[394744895,1763925052521,-1000.0,0.00021472,2]
[394744897,1763925052530,-1000.0,0.00021472,2]
[394744899,1763925052540,-1000.0,0.00021472,2]
[394744901,1763925052550,-1000.0,0.00021472,2]
[394744903,1763925052560,-1000.0,0.00021472,2]
[394744905,1763925052570,-1000.0,0.00021472,2]
[394744907,1763925052578,-1000.0,0.00021472,2]
[394744908,1763925052588,-1000.0,0.00021472,2]
[394744909,1763925052597,-294.33406292,0.00021472,2]
[394744910,1763925052606,-1000.0,0.00021472,2]
[394744912,1763925052616,-487.29316008,0.00021472,2]
[394744915,1763925052626,-1000.0,0.00021472,2]
[394744917,1763925052637,-1000.0,0.00021472,2]
[394744919,1763925052646,-683.89492719,0.00021472,2]
[394744921,1763925052655,-1000.0,0.00021472,2]
[394744923,1763925052664,-1000.0,0.00021472,2]
[394744925,1763925052673,-284.66437097,0.00021472,2]
[394744926,1763925052683,-1000.0,0.00021472,2]
[394744927,1763925052692,-1000.0,0.00021472,2]
[394744928,1763925052701,-1000.0,0.00021472,2]
[394744931,1763925052712,-1000.0,0.00021472,2]
[394744932,1763925052723,-1000.0,0.00021472,2]
[394744934,1763925052732,-1000.0,0.00021472,2]
[394744936,1763925052742,-1000.0,0.00021472,2]
[394744937,1763925052751,-300.0,0.00021472,2]
[394744939,1763925052761,-607.81056643,0.00021472,2]
[394744941,1763925052770,-309.43472655,0.00021472,2]
[394744943,1763925052779,-934.38260062,0.00021472,2]
[394744945,1763925052788,-503.44546234,0.00021472,2]
[394744947,1763925052797,-1000.0,0.00021472,2]
[394744949,1763925052807,-1000.0,0.00021472,2]
[394744951,1763925052816,-1000.0,0.00021472,2]
[394744953,1763925052825,-1000.0,0.00021472,2]
[394744955,1763925052833,-1000.0,0.00021472,2]
[394744957,1763925052843,-1000.0,0.00021472,2]
[394744959,1763925052852,-1000.0,0.00021472,2]
[394744961,1763925052860,-448.72540871,0.00021472,2]
[394744963,1763925052869,-1000.0,0.00021472,2]
[394744965,1763925052879,-12788.86757397,0.000215,2]
[394744967,1763925052888,-630.0,0.00021552,2]
[394744969,1763925052897,-2152.0,0.00021552,2]
[394744970,1763925052907,-398.57059617,0.00021564,2]
[394744971,1763925052916,-951.52674648,0.00021621,35]
[394744972,1763925052927,-159.34263903,0.00021626,38]
[394744973,1763925052938,-151.0,0.00021751,2]
[394744974,1763925052948,-951.52674648,0.00021777,39]
[394744975,1763925052957,-150.0,0.00021807,30]
[394744976,1763925052967,-284.852139,0.00021918,2]
[394744977,1763925052977,-218.086663,0.00021918,7]
[394744978,1763925052986,-218.086663,0.00021918,7]
[394744979,1763925052995,-218.086663,0.00021918,7]
[394744980,1763925053004,-218.086663,0.00021918,7]
[394744981,1763925053014,-218.086663,0.00021918,7]
[394744982,1763925053027,-218.086663,0.00021918,7]
[394744983,1763925053037,-218.086663,0.00021918,7]
[394744984,1763925053047,-218.086663,0.00021918,7]
[394744985,1763925053056,-218.086663,0.00021918,7]
[394744986,1763925053067,-218.086663,0.00021918,7]
[394744987,1763925053076,-218.086663,0.00021918,7]
[394744988,1763925053086,-218.086663,0.00021918,7]
[394744989,1763925053096,-218.086663,0.00021918,7]
[394744990,1763925053106,-218.086663,0.00021918,7]
[394744991,1763925053116,-218.086663,0.00021918,7]
[394744992,1763925053126,-218.086663,0.00021918,7]
[394744993,1763925053136,-218.086663,0.00021918,7]
[394744994,1763925053146,-218.086663,0.00021918,7]
[394744995,1763925053156,-218.086663,0.00021918,7]
[394744996,1763925053167,-218.086662,0.00021918,7]
[394744997,1763925053178,-1294.744508,0.00021918,2]
[394744998,1763925053188,-1294.744508,0.00021918,2]
[394744999,1763925053198,-1294.744508,0.00021918,2]
[394745000,1763925053208,-1294.744508,0.00021918,2]
[394745001,1763925053218,-1294.744508,0.00021918,2]
[394745002,1763925053228,-1294.744508,0.00021918,2]
[394745003,1763925053238,-1294.744508,0.00021918,2]
[394745004,1763925053248,-1294.744508,0.00021918,2]
[394745005,1763925053257,-1294.744508,0.00021918,2]
[394745006,1763925053267,-1294.744508,0.00021918,2]
[394745007,1763925053278,-1294.744508,0.00021918,2]
[394745008,1763925053287,-1294.744508,0.00021918,2]
[394745009,1763925053298,-1294.744508,0.00021918,2]
[394745010,1763925053308,-1294.744508,0.00021918,2]
[394745011,1763925053319,-1294.744508,0.00021918,2]
[394745012,1763925053329,-1294.744508,0.00021918,2]
[394745013,1763925053338,-1294.744508,0.00021918,2]
[394745014,1763925053348,-1294.744508,0.00021918,2]
[394745015,1763925053358,-1294.744508,0.00021918,2]
[394745016,1763925053367,-1294.744507,0.00021918,2]
[394745017,1763925053377,-1875.8,0.00021918,30]
[394745018,1763925053387,-300.0,0.00021918,2]
[394745019,1763925053397,-150.0,0.00021918,2]
[394745020,1763925053406,-300.0,0.00021918,2]
[394745021,1763925053415,-151.0,0.00021918,2]
[394745022,1763925053425,-151.0,0.00021918,2]
[394745023,1763925053434,-151.0,0.00021918,2]
[394745024,1763925053443,-151.0,0.00021918,2]
[394745025,1763925053452,-151.0,0.00021918,2]
[394745026,1763925053461,-151.0,0.00021918,2]
[394745027,1763925053470,-157.00529383,0.00021918,2]
[394745028,1763925053480,-151.0,0.00021918,2]
[394745029,1763925053489,-151.0,0.00021918,2]
[394745030,1763925053498,-151.0,0.00021918,2]
[394745031,1763925053508,-151.0,0.00021918,2]
[394745032,1763925053518,-151.0,0.00021918,2]
[394745033,1763925053528,-151.0,0.00021918,2]
[394745034,1763925053538,-151.0,0.00021918,2]
[394745035,1763925053548,-151.0,0.00021918,2]
[394745036,1763925053557,-151.0,0.00021918,2]
[394745037,1763925053567,-151.0,0.00021918,2]
[394745038,1763925053577,-151.0,0.00021918,2]
[394745039,1763925053587,-151.0,0.00021918,2]
[394745040,1763925053699,-151.0,0.00021918,2]
[394745041,1763925053710,-151.0,0.00021918,2]
[394745042,1763925053719,-151.0,0.00021918,2]
[394745043,1763925053728,-151.0,0.00021918,2]
[394745044,1763925053737,-151.0,0.00021918,2]
[394745045,1763925053747,-151.0,0.00021918,2]
[394745046,1763925053758,-151.0,0.00021918,2]
[394745047,1763925053768,-151.0,0.00021918,2]
[394745048,1763925053777,-151.0,0.00021918,2]
[394745049,1763925053787,-151.0,0.00021918,2]
[394745050,1763925053797,-151.0,0.00021918,2]
[394745051,1763925053807,-151.0,0.00021918,2]
[394745052,1763925053816,-151.0,0.00021918,2]
[394745053,1763925053826,-151.0,0.00021918,2]
[394745054,1763925053837,-151.0,0.00021918,2]
[394745055,1763925053847,-151.0,0.00021918,2]
[394745056,1763925053857,-151.0,0.00021918,2]
[394745057,1763925053866,-151.0,0.00021918,2]
[394745058,1763925053876,-151.0,0.00021918,2]
[394745059,1763925053886,-151.0,0.00021918,2]
[394745060,1763925053896,-151.0,0.00021918,2]
[394745061,1763925053906,-151.0,0.00021918,2]
[394745062,1763925053916,-151.0,0.00021918,2]
[394745063,1763925053925,-151.0,0.00021918,2]
[394745064,1763925053934,-151.0,0.00021918,2]
[394745065,1763925053944,-151.0,0.00021918,2]
[394745066,1763925053953,-151.0,0.00021918,2]
[394745067,1763925053963,-151.0,0.00021918,2]
[394745068,1763925053972,-151.0,0.00021918,2]
[394745069,1763925053982,-151.0,0.00021918,2]
[394745070,1763925053991,-151.0,0.00021918,2]
[394745071,1763925054000,-151.0,0.00021918,2]
[394745072,1763925054009,-151.0,0.00021918,2]
[394745073,1763925054021,-151.0,0.00021918,2]
[394745074,1763925054032,-151.0,0.00021918,2]
[394745075,1763925054043,-151.0,0.00021918,2]
[394745076,1763925054052,-167.1626535,0.00021918,2]
[394745077,1763925054064,-152.31401246,0.00021918,2]
[394745078,1763925054074,-151.0,0.00021918,2]
[394745079,1763925054083,-151.0,0.00021918,2]
[394745080,1763925054095,-151.0,0.00021918,2]
[394745081,1763925054106,-151.0,0.00021918,2]
[394745082,1763925054116,-151.0,0.00021918,2]
[394745083,1763925054127,-151.0,0.00021918,2]
[394745084,1763925054138,-151.0,0.00021918,2]
[394745085,1763925054150,-151.0,0.00021918,2]
[394745086,1763925054162,-151.0,0.00021918,2]
[394745087,1763925054173,-151.0,0.00021918,2]
[394745088,1763925054184,-151.0,0.00021918,2]
[394745089,1763925054196,-151.0,0.00021918,2]
[394745090,1763925054206,-3000.0,0.00021918,2]
[394745091,1763925054217,-1660.0,0.00021918,2]
[394745092,1763925054228,-512.41198861,0.00021918,2]
[394745093,1763925054238,-512.41198861,0.00021918,2]
[394745094,1763925054248,-512.41198861,0.00021918,2]
[394745095,1763925054258,-512.41198861,0.00021918,2]
[394745096,1763925054267,-512.41198861,0.00021918,2]
[394745097,1763925054277,-512.41198861,0.00021918,2]
[394745098,1763925054286,-512.41198861,0.00021918,2]
[394745099,1763925054296,-512.41198861,0.00021918,2]
[394745100,1763925054305,-512.41198861,0.00021918,2]
[394745101,1763925054316,-512.41198861,0.00021918,2]
[394745102,1763925054326,-512.41198861,0.00021918,2]
[394745103,1763925054335,-512.41198861,0.00021918,2]
[394745104,1763925054345,-512.41198861,0.00021918,2]
[394745105,1763925054355,-512.41198861,0.00021918,2]
[394745106,1763925054365,-512.41198861,0.00021918,2]
[394745107,1763925054375,-512.41198861,0.00021918,2]
[394745108,1763925054384,-512.41198861,0.00021918,2]
[394745109,1763925054394,-512.41198861,0.00021918,2]
[394745110,1763925054404,-512.41198861,0.00021918,2]
[394745111,1763925054414,-512.41198861,0.00021918,2]
[394745112,1763925054423,-512.41198861,0.00021918,2]
[394745113,1763925054433,-512.41198861,0.00021918,2]
[394745114,1763925054443,-512.41198861,0.00021918,2]
[394745115,1763925054453,-512.41198861,0.00021918,2]
[394745116,1763925054463,-512.41198861,0.00021918,2]
[394745117,1763925054472,-512.41198861,0.00021918,2]
[394745118,1763925054487,-512.41198861,0.00021918,2]
[394745119,1763925054509,-512.41198861,0.00021918,2]
[394745120,1763925054525,-512.41198861,0.00021918,2]
[394745121,1763925054547,-512.41198861,0.00021918,2]
[394745122,1763925054567,-512.41198861,0.00021918,2]
[394745123,1763925054585,-512.41198861,0.00021918,2]
[394745124,1763925054603,-512.41198861,0.00021918,2]
[394745125,1763925054620,-512.41198861,0.00021918,2]
[394745126,1763925054635,-512.41198861,0.00021918,2]
[394745127,1763925054654,-512.41198861,0.00021918,2]
[394745128,1763925054675,-512.41198861,0.00021918,2]
[394745129,1763925054692,-512.41198861,0.00021918,2]
[394745130,1763925054704,-512.41198861,0.00021918,2]
[394745131,1763925054725,-512.41198861,0.00021918,2]
[394745132,1763925054739,-512.41198861,0.00021918,2]
[394745133,1763925054755,-512.41198861,0.00021918,2]
[394745134,1763925054768,-512.41198861,0.00021918,2]
[394745135,1763925054783,-512.41198861,0.00021918,2]
[394745136,1763925054798,-512.41198861,0.00021918,2]
[394745137,1763925054813,-512.41198861,0.00021918,2]
[394745138,1763925054827,-512.41198861,0.00021918,2]
[394745139,1763925054842,-512.41198861,0.00021918,2]
[394745140,1763925054857,-512.41198861,0.00021918,2]
[394745141,1763925054872,-512.41198861,0.00021918,2]
[394745142,1763925054886,-512.41198861,0.00021918,2]
[394745143,1763925054901,-512.41198861,0.00021918,2]
[394745144,1763925054916,-512.41198861,0.00021918,2]
[394745145,1763925054931,-512.41198861,0.00021918,2]
[394745146,1763925054946,-512.41198861,0.00021918,2]
[394745147,1763925054960,-512.41198861,0.00021918,2]
[394745148,1763925054974,-512.41198861,0.00021918,2]
[394745149,1763925054989,-512.41198861,0.00021918,2]
[394745150,1763925055003,-512.41198861,0.00021918,2]
[394745151,1763925055018,-512.41198861,0.00021918,2]
[394745152,1763925055036,-512.41198861,0.00021918,2]
[394745153,1763925055050,-512.41198861,0.00021918,2]
[394745154,1763925055066,-512.41198861,0.00021918,2]
[394745155,1763925055080,-512.41198861,0.00021918,2]
[394745156,1763925055095,-512.41198861,0.00021918,2]
[394745157,1763925055110,-512.41198861,0.00021918,2]
[394745158,1763925055124,-241.04221616,0.00021921,48]
[394745159,1763925055139,-951.52674648,0.00021933,42]
[394745160,1763925055155,-420145.29,0.00022,2]
[394745161,1763925055168,-418.79,0.00022,2]
[394745162,1763925055183,-1892.04,0.00022,7]
[394745163,1763925055198,-1500.0,0.0002202,2]
[394745164,1763925055212,-1500.0,0.0002202,2]
[394745165,1763925055227,-1500.0,0.0002202,2]
[394745166,1763925055241,-196.53779856,0.0002202,2]
[394745167,1763925055256,-1500.0,0.0002202,2]
[394745168,1763925055271,-1500.0,0.0002202,2]
[394745169,1763925055285,-1500.0,0.0002202,2]
[394745170,1763925055299,-1500.0,0.0002202,2]
[394745171,1763925055314,-1500.0,0.0002202,2]
[394745172,1763925055329,-1009.40686498,0.0002202,2]
[394745173,1763925055344,-1500.0,0.0002202,2]
[394745174,1763925055358,-1500.0,0.0002202,2]
[394745175,1763925055373,-1012.58556956,0.0002202,2]
[394745176,1763925055388,-1500.0,0.0002202,2]
[394745177,1763925055403,-1500.0,0.0002202,2]
[394745178,1763925055418,-1500.0,0.0002202,2]
[394745179,1763925055433,-1500.0,0.0002202,2]
[394745180,1763925055448,-1500.0,0.0002202,2]
[394745181,1763925055462,-1500.0,0.0002202,2]
[394745182,1763925055477,-1500.0,0.0002202,2]
[394745183,1763925055490,-1500.0,0.0002202,2]
[394745184,1763925055499,-1500.0,0.0002202,2]
[394745185,1763925055509,-450.0,0.0002202,2]
[394745186,1763925055518,-1500.0,0.0002202,2]
[394745187,1763925055527,-503.66394553,0.0002202,2]
[394745188,1763925055537,-1500.0,0.0002202,2]
[394745189,1763925055546,-1500.0,0.0002202,2]
[394745190,1763925055555,-1500.0,0.0002202,2]
[394745191,1763925055564,-1508.18043668,0.0002202,2]
[394745192,1763925055574,-1500.0,0.0002202,2]
[394745193,1763925055584,-1500.0,0.0002202,2]
[394745194,1763925055593,-951.52674648,0.00022088,46]
[394745195,1763925055824,-600.0,0.00022192,2]
[394745196,1763925055853,-458.79,0.00022225,2]
[394745197,1763925055867,-500.0,0.00022242,30]
[394745198,1763925055877,-155.22,0.00022242,60]
[394745199,1763925055886,-951.52674648,0.00022244,50]
[394745200,1763925055895,-159.34263903,0.0002233,56]
[394745201,1763925055905,-951.52674648,0.000224,54]
[394745202,1763925055915,-257.0091205,0.00022438,2]
[394745203,1763925055924,-301.288988,0.00022438,2]
[394745204,1763925055934,-301.288988,0.00022438,2]
[394745205,1763925055945,-301.288988,0.00022438,2]
[394745206,1763925055954,-301.288988,0.00022438,2]
[394745207,1763925055965,-301.288988,0.00022438,2]
[394745208,1763925055974,-301.288988,0.00022438,2]
[394745209,1763925055983,-301.288988,0.00022438,2]
[394745210,1763925055993,-301.288988,0.00022438,2]
[394745211,1763925056002,-154.28407451,0.00022441,56]
[394745212,1763925056011,-300.0,0.00022466,2]
[394745213,1763925056022,-801.37260799,0.00022466,2]
[394745214,1763925056032,-1760.0,0.00022466,2]
[394745215,1763925056042,-241.04221616,0.00022488,63]
[394745216,1763925056052,-424.10825092,0.000225,2]
[394745217,1763925056064,-951.52674648,0.00022556,57]
[394745218,1763925056072,-1455.52793936,0.00022568,2]
[394745219,1763925056082,-2000.0,0.00022568,2]
[394745220,1763925056092,-1528.59601658,0.00022568,2]
[394745221,1763925056104,-2000.0,0.00022568,2]
[394745222,1763925056114,-2000.0,0.00022568,2]
[394745223,1763925056124,-2000.0,0.00022568,2]
[394745224,1763925056132,-2000.0,0.00022568,2]
[394745225,1763925056142,-2000.0,0.00022568,2]
[394745226,1763925056151,-597.7653527,0.00022568,2]
[394745227,1763925056161,-173.58118336,0.00022568,2]
[394745228,1763925056170,-2000.0,0.00022568,2]
[394745229,1763925056179,-2000.0,0.00022568,2]
[394745230,1763925056188,-274.97435561,0.00022568,2]
[394745231,1763925056198,-2000.0,0.00022568,2]
[394745232,1763925056208,-2000.0,0.00022568,2]
[394745233,1763925056218,-2000.0,0.00022568,2]
[394745234,1763925056227,-2000.0,0.00022568,2]
[394745235,1763925056237,-2000.0,0.00022568,2]
[394745236,1763925056246,-2000.0,0.00022568,2]
[394745237,1763925056255,-302.11388077,0.00022568,2]
[394745238,1763925056265,-2000.0,0.00022568,2]
[394745239,1763925056275,-1788.36035591,0.00022568,2]
[394745240,1763925056284,-2000.0,0.00022568,2]
[394745241,1763925056294,-1318.63196836,0.00022568,2]
[394745242,1763925056303,-1964.40814293,0.00022568,2]
[394745243,1763925056313,-2000.0,0.00022568,2]
[394745244,1763925056322,-951.52674648,0.00022711,61]
[394745245,1763925056332,-600.0,0.0002274,2]
[394745246,1763925056341,-951.52674648,0.00022867,65]
[394745247,1763925056350,-160.0,0.00022899,3]
[394745248,1763925056359,-2026.82,0.00023,15]
[394745249,1763925056368,-155.64609277,0.00023,2]
[394745250,1763925056377,-1892.04,0.00023,7]
[394745251,1763925056387,-307.0,0.00023,7]
[394745252,1763925056396,-500.0,0.00023014,2]
[394745253,1763925056405,-450.0,0.00023014,2]
[394745254,1763925056414,-3000.0,0.00023014,2]
[394745255,1763925056423,-1860.0,0.00023014,2]
[394745256,1763925056433,-951.52674648,0.00023023,69]
[394745257,1763925056443,-159.34263903,0.00023033,74]
[394745258,1763925056452,-241.04221616,0.00023055,79]
[394745259,1763925056462,-500.0,0.00023073,2]
[394745260,1763925056471,-163.29332535,0.00023073,2]
[394745261,1763925056480,-240119.43137778,0.000231,2]
[394745262,1763925057656,-207.348366,0.000129,2]
[394745263,1763925057665,-207.348366,0.000129,2]
[394745264,1763925057675,-207.348366,0.000129,2]
[394745265,1763925057685,-207.348366,0.00013297,2]
[394745266,1763925057696,-207.348366,0.00013297,2]
[394745267,1763925057707,-207.348366,0.00013297,2]
[394745268,1763925057717,-134.72118655,0.00013698,2]
[394745269,1763925057836,-207.348366,0.000129,2]
[394745270,1763925057845,-207.348366,0.00013297,2]
[394745271,1763925057855,-72.62717945,0.00013698,2]
[394745272,1763925057864,-207.348366,0.00013698,2]
[394745273,1763925057875,-207.348366,0.00013698,2]
[394745274,1763925057884,-207.348366,0.00013698,2]
[394745275,1763925057894,-151.0,0.00013699,2]
[394745276,1763925057903,-207.348366,0.00013699,2]
[394745277,1763925057915,-207.348366,0.00013699,2]
[394745278,1763925057924,-207.348366,0.00013699,2]
[394745279,1763925057933,-207.348366,0.00013699,2]
[394745280,1763925057943,-207.348366,0.00013699,2]
[394745281,1763925057952,-207.348366,0.00013699,2]
[394745282,1763925057962,-207.348366,0.00013699,2]
[394745283,1763925057971,-207.348367,0.00013699,2]
[394745284,1763925057980,-14557.24388705,0.000231,2]
[394745289,1763925266712,150.0,0.00014,10]
[394745290,1763925275161,150.0,0.00014,10]
[394745291,1763925669912,203.7499623,8.664e-05,2]
[394745292,1763925706408,303.757,9.322e-05,2]
[394745294,1763926017118,-168.19308826,9.51e-05,2]
[394745295,1763926043323,-297.19495182,9.51e-05,2]
[394745297,1763926047081,-167.67933251,9.51e-05,2]
[394745298,1763926047104,-161.3050641,9.51e-05,2]
[394745299,1763926047124,-72.16021305,9.511e-05,2]
[394745300,1763926048089,-227.83978695,9.511e-05,2]
[394745301,1763926048114,-640.07392083,9.512e-05,2]
[394745302,1763926056397,1732.96826271,0.0002,30]
[394745308,1763926150131,-158.95064919,9.511e-05,2]
[394745309,1763926150155,-500.0,9.511e-05,2]
[394745310,1763926150180,-500.0,9.511e-05,2]
[394745311,1763926150204,-614.19728,9.511e-05,2]
[394745312,1763926150228,-500.0,9.511e-05,2]
[394745313,1763926150254,-500.0,9.511e-05,2]
[394745314,1763926150279,-158.62704234,9.512e-05,2]
[394745315,1763926150308,-99205.95050689,9.512e-05,2]
[394745316,1763926152083,-2731.91612484,9.512e-05,2]
[394745317,1763926159271,-1765.58730071,9.412e-05,2]
[394745318,1763926159303,-20508.25111432,9.412e-05,2]
[394745319,1763926159327,-300.0,9.701e-05,2]
[394745320,1763926159349,-300.0,9.701e-05,2]
[394745321,1763926159370,-300.0,9.701e-05,2]
[394745322,1763926159395,-300.0,9.701e-05,2]
[394745323,1763926159416,-300.0,9.701e-05,2]
[394745324,1763926159448,-300.0,9.701e-05,2]
[394745325,1763926159471,-300.0,9.701e-05,2]
[394745326,1763926159492,-300.0,9.701e-05,2]
[394745327,1763926159514,-300.0,9.701e-05,2]
[394745328,1763926159536,-300.0,9.701e-05,2]
[394745329,1763926159557,-300.0,9.701e-05,2]
[394745330,1763926159577,-300.0,9.701e-05,2]
[394745331,1763926159600,-300.0,9.701e-05,2]
[394745332,1763926159620,-300.0,9.701e-05,2]
[394745333,1763926159640,-300.0,9.701e-05,2]
[394745334,1763926159662,-600.0,9.701e-05,2]
[394745335,1763926159681,-44063.00772476,9.701e-05,2]
[394745336,1763926159702,-353.29325365,9.743e-05,2]
[394745337,1763926159722,-228.38306254,0.00010061,2]
[394745338,1763926159741,-500.0,0.00010189,2]
[394745339,1763926159762,-500.0,0.00010189,2]
[394745340,1763926159782,-500.0,0.00010189,2]
[394745341,1763926159808,-720.0,0.00010671,2]
[394745342,1763926159828,-1000.0,0.00010737,2]
[394745343,1763926159848,-500.0,0.00010737,2]
[394745344,1763926159868,-1000.0,0.00010737,2]
[394745345,1763926159887,-359.879213,0.00010959,2]
[394745346,1763926159907,-369.72257758,0.00010959,2]
[394745347,1763926159930,-500.0,0.00010959,2]